fUSD/lending_fUSD_20250227
["ID","MTS","AMOUNT","RATE_DAILY","PERIOD"]
[354737262,1740654644649,-500.0,0.00054999,120]
[354737263,1740654644659,-500.0,0.00054999,120]
[354737264,1740654644668,-500.0,0.00054999,120]
[354737265,1740654644677,-500.0,0.00054999,120]
[354737266,1740654644687,-504.2472507,0.00054999,120]
[354737267,1740654644696,-505.042429,0.00054999,120]
[354737268,1740654644705,-500.0,0.00054999,120]
[354737269,1740654644714,-500.0,0.00054999,120]
[354737270,1740654644723,-500.0,0.00054999,120]
[354737271,1740654644732,-625.59,0.00054999,120]
[354737272,1740654644741,-536.24395641,0.00054999,120]
[354737273,1740654644750,-500.0,0.00054999,120]
[354737274,1740654644763,-505.87107163,0.00054999,120]
[354737275,1740654644772,-504.85777632,0.00054999,120]
[354737276,1740654644782,-535.30528285,0.00054999,120]
[354737277,1740654644791,-506.25734541,0.00054999,120]
[354737278,1740654644801,-500.0,0.00054999,120]
[354737279,1740654644810,-503.3158873,0.00054999,120]
[354737280,1740654644819,-505.11230523,0.00054999,90]
[354737281,1740654644828,-501.82809743,0.00054999,120]
[354737282,1740654644837,-500.0,0.00054999,120]
[354737283,1740654644846,-500.0,0.00054999,120]
[354737284,1740654644855,-481.72498463,0.00054999,120]
[354737285,1740654644865,-500.0,0.00054999,120]
[354737286,1740654644875,-500.0,0.00054999,120]
[354737287,1740654644884,-501.87126415,0.00054999,120]
[354737288,1740654644894,-500.0,0.00054999,120]
[354737289,1740654644903,-500.0,0.00054999,120]
[354737290,1740654644912,-519.46191919,0.00054999,120]
[354737291,1740654644921,-501.08620324,0.00054999,120]
[354737292,1740654644930,-500.0,0.00054999,120]
[354737293,1740654644939,-500.0,0.00054999,120]
[354737294,1740654644948,-500.0,0.00054999,120]
[354737295,1740654644957,-500.0,0.00054999,120]
[354737296,1740654644967,-530.89883209,0.00054999,120]
[354737297,1740654644975,-500.0,0.00054999,120]
[354737298,1740654644985,-537.47538961,0.00054999,120]
[354737299,1740654644994,-500.0,0.00054999,120]
[354737300,1740654645004,-507.77759088,0.00054999,120]
[354737301,1740654645014,-500.0,0.00054999,120]
[354737302,1740654645024,-500.0,0.00054999,120]
[354737303,1740654645034,-506.13471346,0.00054999,120]
[354737304,1740654645045,-500.0,0.00054999,120]
[354737305,1740654645054,-500.0,0.00054999,120]
[354737306,1740654645064,-500.0,0.00054999,120]
[354737307,1740654645074,-500.0,0.00054999,120]
[354737308,1740654645083,-526.92115204,0.00054999,120]
[354737309,1740654645093,-505.6649019,0.00054999,120]
[354737310,1740654645102,-500.0,0.00054999,120]
[354737311,1740654645111,-500.0,0.00054999,120]
[354737312,1740654645120,-500.0,0.00054999,120]
[354737313,1740654645129,-500.0,0.00054999,120]
[354737314,1740654645138,-500.0,0.00054999,120]
[354737315,1740654645147,-500.0,0.00054999,120]
[354737316,1740654645157,-500.0,0.00054999,120]
[354737317,1740654645166,-500.0,0.00054999,120]
[354737318,1740654645175,-500.0,0.00054999,120]
[354737319,1740654645184,-500.0,0.00054999,120]
[354737320,1740654645193,-250.56,0.00054999,120]
[354737321,1740654645202,-1000000.0,0.00055,120]
[354737322,1740654645211,-500.0,0.00055046,2]
[354737323,1740654645220,-6202.57251389,0.00055067,15]
[354737324,1740654645230,-631.28155024,0.00055068,120]
[354737325,1740654645239,-553.6,0.00055068,120]
[354737326,1740654645247,-327.97,0.00055068,120]
[354737327,1740654645257,-452.42,0.00055068,120]
[354737328,1740654645266,-500.0,0.00055068,120]
[354737329,1740654645275,-500.0,0.00055068,120]
[354737330,1740654645285,-500.0,0.00055068,120]
[354737331,1740654645294,-2828.75,0.00055068,120]
[354737332,1740654645304,-500.0,0.00055068,120]
[354737333,1740654645313,-500.0,0.00055068,120]
[354737334,1740654645322,-500.0,0.00055068,120]
[354737335,1740654645331,-1913.645941,0.00055068,120]
[354737336,1740654645340,-500.0,0.00055068,120]
[354737337,1740654645349,-500.0,0.00055068,120]
[354737338,1740654645359,-500.0,0.00055068,120]
[354737339,1740654645367,-331.75262306,0.00055068,120]
[354737340,1740654645376,-2199.86,0.00055068,120]
[354737341,1740654645386,-500.0,0.00055068,120]
[354737342,1740654645395,-500.99749961,0.00055068,120]
[354737343,1740654645405,-500.0,0.00055068,120]
[354737344,1740654645415,-500.0,0.00055068,120]
[354737345,1740654645425,-500.0,0.00055068,120]
[354737346,1740654645435,-500.0,0.00055068,120]
[354737347,1740654645444,-421.28,0.00055068,120]
[354737348,1740654645454,-500.0,0.00055068,120]
[354737349,1740654645463,-500.0,0.00055068,120]
[354737350,1740654645473,-500.0,0.00055068,120]
[354737351,1740654645482,-500.0,0.00055068,120]
[354737352,1740654645492,-500.0,0.00055068,120]
[354737353,1740654645502,-6505.37,0.00055068,120]
[354737354,1740654645511,-500.0,0.00055068,120]
[354737355,1740654645521,-546.34,0.00055068,120]
[354737356,1740654645530,-940.35,0.00055068,120]
[354737357,1740654645540,-500.0,0.00055068,120]
[354737358,1740654645549,-3032.36,0.00055068,120]
[354737359,1740654645559,-500.0,0.00055068,120]
[354737360,1740654645571,-500.0,0.00055068,120]
[354737361,1740654645581,-500.0,0.00055068,120]
[354737362,1740654645590,-500.0,0.00055068,120]
[354737363,1740654645600,-500.0,0.00055068,120]
[354737364,1740654645610,-757.78,0.00055068,120]
[354737365,1740654645621,-500.0,0.00055068,120]
[354737366,1740654645632,-1118.23,0.00055068,120]
[354737367,1740654645643,-3256.8,0.00055068,120]
[354737368,1740654645652,-309.68931641,0.00055068,120]
[354737369,1740654645663,-529.55,0.00055068,120]
[354737370,1740654645673,-500.0,0.00055068,120]
[354737371,1740654645683,-2841.91,0.00055068,120]
[354737373,1740654645692,-500.0,0.00055068,120]
[354737375,1740654645702,-648.09834845,0.00055068,120]
[354737377,1740654645711,-500.0,0.00055068,120]
[354737379,1740654645720,-500.0,0.00055068,120]
[354737380,1740654645730,-500.0,0.00055068,120]
[354737382,1740654645740,-500.0,0.00055068,120]
[354737384,1740654645750,-500.0,0.00055068,120]
[354737385,1740654645759,-624.88,0.00055068,120]
[354737386,1740654645768,-500.0,0.00055068,120]
[354737387,1740654645777,-253.28664623,0.00055068,120]
[354737388,1740654645790,-439.68,0.00055096,30]
[354737389,1740654645799,-150.0,0.00055096,30]
[354737390,1740654645809,-150.0,0.00055096,30]
[354737392,1740654645819,-150.0,0.00055096,30]
[354737394,1740654645828,-439.68,0.00055096,30]
[354737396,1740654645838,-150.0,0.00055096,30]
[354737398,1740654645849,-439.68,0.00055096,30]
[354737400,1740654645858,-153.1629,0.000551,7]
[354737402,1740654645868,-500.0,0.00055273,120]
[354737404,1740654645878,-500.0,0.00055273,120]
[354737405,1740654645887,-500.0,0.00055273,120]
[354737406,1740654645897,-500.0,0.00055273,120]
[354737407,1740654645906,-500.0,0.00055273,120]
[354737408,1740654645916,-500.0,0.00055273,120]
[354737409,1740654646042,-495.0,0.00055273,120]
[354737410,1740654646054,-458.26,0.00055273,120]
[354737411,1740654646063,-316.84,0.00055273,120]
[354737412,1740654646073,-500.0,0.00055273,120]
[354737413,1740654646082,-500.0,0.00055273,120]
[354737414,1740654646091,-2127.02,0.00055273,120]
[354737415,1740654646100,-526.69568575,0.00055273,120]
[354737416,1740654646110,-500.0,0.00055273,120]
[354737417,1740654646119,-500.0,0.00055273,120]
[354737418,1740654646128,-500.0,0.00055273,120]
[354737419,1740654646138,-500.0,0.00055273,120]
[354737420,1740654646147,-172.29,0.00055273,120]
[354737421,1740654646157,-1078.12,0.00055273,120]
[354737422,1740654646166,-500.0,0.00055273,120]
[354737423,1740654646176,-500.0,0.00055273,120]
[354737424,1740654646185,-510.5632751,0.00055273,120]
[354737425,1740654646195,-634.06,0.00055273,120]
[354737426,1740654646205,-467.57,0.00055273,120]
[354737427,1740654646215,-510.41,0.00055273,120]
[354737428,1740654646225,-524.59993122,0.00055273,120]
[354737429,1740654646234,-500.0,0.00055273,120]
[354737430,1740654646244,-500.0,0.00055273,120]
[354737431,1740654646253,-167.48,0.00055273,120]
[354737432,1740654646262,-500.0,0.00055273,120]
[354737433,1740654646271,-500.0,0.00055273,120]
[354737434,1740654646281,-500.0,0.00055273,120]
[354737435,1740654646291,-500.0,0.00055273,120]
[354737436,1740654646300,-472.27214321,0.00055273,120]
[354737437,1740654646310,-502.03264513,0.00055273,120]
[354737438,1740654646319,-502.58384652,0.00055273,120]
[354737440,1740654646329,-504.54582141,0.00055273,120]
[354737442,1740654646338,-503.91815697,0.00055273,120]
[354737444,1740654646348,-517.2397062,0.00055273,120]
[354737446,1740654646357,-501.76497024,0.00055273,120]
[354737448,1740654646366,-502.98149402,0.00055273,120]
[354737450,1740654646376,-500.0,0.00055273,120]
[354737452,1740654646385,-501.60649149,0.00055273,120]
[354737454,1740654646395,-500.0,0.00055273,120]
[354737456,1740654646404,-506.9948928,0.00055273,120]
[354737458,1740654646413,-500.0,0.00055273,120]
[354737460,1740654646422,-500.0,0.00055273,120]
[354737462,1740654646432,-500.0,0.00055273,120]
[354737464,1740654646441,-500.0,0.00055273,120]
[354737466,1740654646450,-275.21,0.00055273,120]
[354737468,1740654646459,-500.0,0.00055273,120]
[354737470,1740654646468,-633.29,0.00055273,120]
[354737472,1740654646477,-500.0,0.00055273,120]
[354737474,1740654646487,-504.49832114,0.00055273,120]
[354737476,1740654646496,-500.0,0.00055273,120]
[354737478,1740654646505,-500.0,0.00055273,120]
[354737480,1740654646515,-500.0,0.00055273,120]
[354737482,1740654646524,-500.0,0.00055273,120]
[354737484,1740654646534,-500.0,0.00055273,120]
[354737486,1740654646544,-501.96207925,0.00055273,120]
[354737488,1740654646554,-500.0,0.00055273,120]
[354737490,1740654646564,-500.0,0.00055273,120]
[354737491,1740654646576,-500.98910767,0.00055273,120]
[354737494,1740654646586,-500.0,0.00055273,120]
[354737496,1740654646596,-557.78,0.00055273,120]
[354737498,1740654646607,-500.0,0.00055273,120]
[354737500,1740654646616,-505.6864465,0.00055273,120]
[354737502,1740654646625,-620.21299659,0.00055273,120]
[354737504,1740654646635,-500.0,0.00055273,120]
[354737506,1740654646645,-500.0,0.00055273,120]
[354737508,1740654646655,-514.96,0.00055273,120]
[354737510,1740654646664,-444.34980722,0.00055273,120]
[354737512,1740654646673,-500.0,0.00055273,120]
[354737514,1740654646682,-500.0,0.00055273,60]
[354737516,1740654646692,-500.0,0.00055273,120]
[354737518,1740654646701,-495.2168125,0.00055273,120]
[354737520,1740654646710,-500.0,0.00055273,120]
[354737522,1740654646719,-500.0,0.00055273,120]
[354737524,1740654646728,-500.0,0.00055273,120]
[354737526,1740654646738,-500.0,0.00055273,120]
[354737528,1740654646747,-500.0,0.00055273,120]
[354737530,1740654646757,-500.0,0.00055273,120]
[354737532,1740654646766,-500.0,0.00055273,120]
[354737534,1740654646775,-506.74055007,0.00055273,120]
[354737536,1740654646786,-500.0,0.00055273,120]
[354737538,1740654646795,-500.0,0.00055273,120]
[354737540,1740654646804,-407.60400978,0.00055273,120]
[354737542,1740654646813,-500.0,0.00055273,120]
[354737544,1740654646823,-500.0,0.00055273,120]
[354737546,1740654646832,-501.91892759,0.00055273,120]
[354737548,1740654646842,-506.9889001,0.00055273,120]
[354737550,1740654646851,-500.0,0.00055273,120]
[354737552,1740654646861,-500.0,0.00055273,120]
[354737554,1740654646870,-504.34407986,0.00055273,120]
[354737556,1740654646879,-500.0,0.00055273,120]
[354737558,1740654646889,-500.0,0.00055273,120]
[354737560,1740654646899,-500.0,0.00055273,120]
[354737562,1740654646908,-500.0,0.00055273,120]
[354737564,1740654646917,-500.0,0.00055273,120]
[354737566,1740654646926,-207.68009022,0.00055273,120]
[354737568,1740654646935,-500.0,0.00055273,120]
[354737570,1740654646945,-500.0,0.00055273,120]
[354737572,1740654646954,-500.0,0.00055273,120]
[354737573,1740654646963,-500.0,0.00055273,120]
[354737575,1740654646972,-500.0,0.00055273,120]
[354737577,1740654646981,-500.0,0.00055273,120]
[354737579,1740654646990,-500.0,0.00055273,120]
[354737581,1740654646999,-500.0,0.00055273,120]
[354737583,1740654647009,-500.0,0.00055273,120]
[354737585,1740654647018,-500.0,0.00055273,120]
[354737587,1740654647028,-500.0,0.00055273,120]
[354737589,1740654647038,-500.0,0.00055273,120]
[354737591,1740654647047,-500.0,0.00055273,120]
[354737593,1740654647056,-500.0,0.00055273,120]
[354737595,1740654647066,-500.0,0.00055273,120]
[354737597,1740654647075,-500.0,0.00055273,120]
[354737599,1740654647085,-500.0,0.00055273,120]
[354737601,1740654647094,-500.0,0.00055273,120]
[354737603,1740654647103,-500.0,0.00055273,120]
[354737605,1740654647112,-500.0,0.00055273,120]
[354737607,1740654647122,-500.0,0.00055273,120]
[354737609,1740654647131,-500.0,0.00055273,120]
[354737611,1740654647140,-504.9031888,0.00055273,120]
[354737613,1740654647150,-211.33,0.00055273,120]
[354737615,1740654647159,-207.49,0.00055273,120]
[354737617,1740654647168,-500.0,0.00055273,120]
[354737619,1740654647177,-500.0,0.00055273,120]
[354737621,1740654647186,-500.0,0.00055273,120]
[354737623,1740654647195,-500.0,0.00055273,120]
[354737625,1740654647205,-500.0,0.00055273,120]
[354737627,1740654647214,-500.0,0.00055273,120]
[354737629,1740654647223,-500.0,0.00055273,120]
[354737631,1740654647232,-337.84,0.00055273,120]
[354737633,1740654647242,-500.0,0.00055273,120]
[354737635,1740654647251,-228.17465735,0.00055273,120]
[354737637,1740654647261,-500.0,0.00055273,120]
[354737639,1740654647271,-535.8,0.00055273,120]
[354737641,1740654647281,-509.07050351,0.00055273,120]
[354737643,1740654647290,-509.52,0.00055273,120]
[354737645,1740654647299,-500.0,0.00055273,120]
[354737648,1740654647309,-500.0,0.00055273,120]
[354737649,1740654647318,-500.0,0.00055273,120]
[354737651,1740654647327,-641.02,0.00055273,120]
[354737654,1740654647337,-500.0,0.00055273,120]
[354737656,1740654647348,-500.0,0.00055273,120]
[354737657,1740654647358,-500.0,0.00055273,120]
[354737659,1740654647367,-500.0,0.00055273,120]
[354737661,1740654647376,-471.3999624,0.00055273,120]
[354737663,1740654647385,-500.0,0.00055273,120]
[354737665,1740654647395,-500.0,0.00055273,120]
[354737668,1740654647404,-500.0,0.00055273,120]
[354737670,1740654647414,-523.08291075,0.00055273,120]
[354737672,1740654647424,-500.0,0.00055273,120]
[354737674,1740654647434,-504.0628096,0.00055273,120]
[354737676,1740654647444,-500.0,0.00055273,120]
[354737678,1740654647453,-500.0,0.00055273,120]
[354737680,1740654647463,-500.0,0.00055273,120]
[354737682,1740654647473,-500.0,0.00055273,120]
[354737684,1740654647482,-500.0,0.00055273,120]
[354737686,1740654647492,-500.0,0.00055273,120]
[354737688,1740654647501,-502.40202293,0.00055273,120]
[354737690,1740654647510,-500.0,0.00055273,120]
[354737692,1740654647520,-509.6492367,0.00055273,120]
[354737694,1740654647529,-500.0,0.00055273,120]
[354737696,1740654647539,-500.0,0.00055273,120]
[354737698,1740654647548,-506.35858657,0.00055273,120]
[354737700,1740654647557,-625.59,0.00055273,120]
[354737702,1740654647572,-500.0,0.00055273,120]
[354737704,1740654647581,-500.0,0.00055273,120]
[354737706,1740654647590,-500.0,0.00055273,120]
[354737708,1740654647600,-384.52142103,0.00055273,120]
[354737710,1740654647610,-500.0,0.00055273,120]
[354737712,1740654647619,-500.0,0.00055273,120]
[354737714,1740654647629,-503.80541652,0.00055273,120]
[354737716,1740654647639,-500.0,0.00055273,120]
[354737718,1740654647649,-500.0,0.00055273,120]
[354737720,1740654647658,-500.0,0.00055273,120]
[354737722,1740654647667,-500.0,0.00055273,120]
[354737724,1740654647676,-500.0,0.00055273,120]
[354737726,1740654647685,-500.0,0.00055273,120]
[354737728,1740654647694,-515.76421728,0.00055273,120]
[354737729,1740654647703,-500.0,0.00055273,120]
[354737732,1740654647713,-500.0,0.00055273,120]
[354737734,1740654647722,-506.97162426,0.00055273,120]
[354737736,1740654647732,-500.0,0.00055273,120]
[354737738,1740654647741,-500.0,0.00055273,120]
[354737740,1740654647751,-500.0,0.00055273,120]
[354737742,1740654647760,-502.57786951,0.00055273,120]
[354737744,1740654647770,-6202.57251389,0.00055289,15]
[354737746,1740654647779,-1084.94922206,0.00055309,30]
[354737748,1740654647789,-500.0,0.00055341,120]
[354737750,1740654647799,-500.0,0.00055342,120]
[354737752,1740654647808,-500.0,0.00055342,120]
[354737754,1740654647817,-500.0,0.00055342,120]
[354737756,1740654647826,-2828.75,0.00055342,120]
[354737758,1740654647835,-500.0,0.00055342,120]
[354737760,1740654647844,-500.0,0.00055342,120]
[354737762,1740654647853,-1913.645941,0.00055342,120]
[354737764,1740654647862,-500.0,0.00055342,120]
[354737766,1740654647872,-500.0,0.00055342,120]
[354737768,1740654647880,-2199.86,0.00055342,120]
[354737770,1740654647890,-500.0,0.00055342,120]
[354737772,1740654647900,-500.0,0.00055342,120]
[354737774,1740654647909,-500.0,0.00055342,120]
[354737776,1740654647919,-500.0,0.00055342,120]
[354737778,1740654647928,-500.0,0.00055342,120]
[354737780,1740654647937,-500.0,0.00055342,120]
[354737782,1740654647946,-500.0,0.00055342,120]
[354737783,1740654647954,-6505.37,0.00055342,120]
[354737785,1740654647964,-940.35,0.00055342,120]
[354737786,1740654647973,-500.0,0.00055342,120]
[354737787,1740654647982,-3032.36,0.00055342,120]
[354737788,1740654647991,-335.51,0.00055342,120]
[354737789,1740654648000,-500.0,0.00055342,120]
[354737790,1740654648010,-500.0,0.00055342,120]
[354737791,1740654648020,-500.0,0.00055342,120]
[354737792,1740654648056,-757.78,0.00055342,120]
[354737793,1740654648065,-400.96,0.00055342,120]
[354737794,1740654648074,-1118.23,0.00055342,120]
[354737795,1740654648083,-3256.8,0.00055342,120]
[354737796,1740654648092,-529.55,0.00055342,120]
[354737798,1740654648101,-500.0,0.00055342,120]
[354737800,1740654648111,-2841.91,0.00055342,120]
[354737802,1740654648120,-167.85508283,0.00055342,120]
[354737804,1740654648130,-153.021552,0.00055342,120]
[354737806,1740654648139,-500.0,0.00055342,120]
[354737808,1740654648149,-6202.57251389,0.00055511,15]
[354737810,1740654648159,-500.0,0.00055547,120]
[354737812,1740654648169,-500.0,0.00055547,120]
[354737814,1740654648178,-497.72567714,0.00055547,120]
[354737816,1740654648187,-2127.02,0.00055547,120]
[354737818,1740654648196,-500.0,0.00055547,120]
[354737820,1740654648206,-1078.12,0.00055547,120]
[354737822,1740654648214,-500.0,0.00055547,120]
[354737824,1740654648224,-500.0,0.00055547,120]
[354737826,1740654648233,-558.74,0.00055547,120]
[354737828,1740654648241,-307.80871184,0.00055547,120]
[354737830,1740654648250,-500.0,0.00055547,120]
[354737832,1740654648259,-500.0,0.00055547,120]
[354737834,1740654648268,-500.0,0.00055547,120]
[354737836,1740654648277,-500.0,0.00055547,120]
[354737837,1740654648285,-500.0,0.00055547,120]
[354737839,1740654648295,-509.52,0.00055547,120]
[354737841,1740654648304,-500.0,0.00055547,120]
[354737843,1740654648315,-500.0,0.00055547,120]
[354737845,1740654648324,-500.0,0.00055547,120]
[354737847,1740654648335,-284.14,0.00055547,120]
[354737849,1740654648344,-501.09035648,0.00055547,120]
[354737851,1740654648354,-625.59,0.00055547,120]
[354737853,1740654648363,-500.0,0.00055547,120]
[354737855,1740654648372,-500.0,0.00055547,120]
[354737857,1740654648381,-500.0,0.00055616,120]
[354737859,1740654648390,-502.0718,0.00055616,120]
[354737861,1740654648399,-500.0,0.00055616,120]
[354737863,1740654648407,-2828.75,0.00055616,120]
[354737865,1740654648414,-500.0,0.00055616,120]
[354737867,1740654648422,-500.0,0.00055616,120]
[354737869,1740654648431,-1913.645941,0.00055616,120]
[354737871,1740654648440,-500.0,0.00055616,120]
[354737873,1740654648450,-500.0,0.00055616,120]
[354737875,1740654648459,-2199.86,0.00055616,120]
[354737877,1740654648469,-221.20505678,0.00055616,120]
[354737879,1740654648479,-500.0,0.00055616,120]
[354737881,1740654648488,-415.17992169,0.00055616,120]
[354737883,1740654648498,-500.0,0.00055616,120]
[354737885,1740654648508,-500.0,0.00055616,120]
[354737887,1740654648517,-500.0,0.00055616,120]
[354737889,1740654648526,-500.0,0.00055616,120]
[354737891,1740654648536,-6505.37,0.00055616,120]
[354737893,1740654648545,-940.35,0.00055616,120]
[354737895,1740654648553,-500.0,0.00055616,120]
[354737897,1740654648562,-3032.36,0.00055616,120]
[354737900,1740654648576,-500.0,0.00055616,120]
[354737902,1740654648587,-500.0,0.00055616,120]
[354737903,1740654648597,-500.0,0.00055616,120]
[354737905,1740654648606,-757.78,0.00055616,120]
[354737907,1740654648616,-1118.23,0.00055616,120]
[354737909,1740654648625,-3256.8,0.00055616,120]
[354737911,1740654648634,-529.55,0.00055616,120]
[354737913,1740654648644,-500.0,0.00055616,120]
[354737915,1740654648653,-2841.91,0.00055616,120]
[354737917,1740654648663,-500.0,0.00055616,120]
[354737919,1740654648673,-151.442006,0.00055616,120]
[354737921,1740654648682,-1000.0,0.00055719,60]
[354737923,1740654648691,-6202.57251389,0.00055733,15]
[354737925,1740654648701,-3010.833224,0.000558,2]
[354737927,1740654648710,-561.08,0.00055821,120]
[354737929,1740654648719,-269.16,0.00055821,120]
[354737931,1740654648728,-2127.02,0.00055821,120]
[354737933,1740654648738,-500.0,0.00055821,120]
[354737935,1740654648747,-1078.12,0.00055821,120]
[354737937,1740654648756,-500.0,0.00055821,120]
[354737939,1740654648765,-500.0,0.00055821,120]
[354737940,1740654648774,-500.0,0.00055821,120]
[354737942,1740654648785,-500.0,0.00055821,120]
[354737944,1740654648794,-500.0,0.00055821,120]
[354737946,1740654648804,-500.0,0.00055821,120]
[354737948,1740654648814,-509.52,0.00055821,120]
[354737950,1740654648823,-221.07083493,0.00055821,120]
[354737952,1740654648833,-500.0,0.00055821,120]
[354737954,1740654648842,-625.59,0.00055821,120]
[354737956,1740654648851,-500.0,0.00055821,120]
[354737958,1740654648860,-500.0,0.00055821,120]
[354737960,1740654648869,-30000.0,0.0005584,2]
[354737962,1740654648879,-4562.0,0.00055889,120]
[354737964,1740654648888,-500.0,0.0005589,120]
[354737966,1740654648898,-500.0,0.0005589,120]
[354737968,1740654648907,-2828.75,0.0005589,120]
[354737970,1740654648917,-500.0,0.0005589,120]
[354737972,1740654648926,-500.0,0.0005589,120]
[354737974,1740654648936,-1913.645941,0.0005589,120]
[354737976,1740654648946,-500.0,0.0005589,120]
[354737978,1740654648955,-500.0,0.0005589,120]
[354737980,1740654648965,-2199.86,0.0005589,120]
[354737982,1740654648974,-500.0,0.0005589,120]
[354737984,1740654648984,-500.0,0.0005589,120]
[354737986,1740654648994,-500.0,0.0005589,120]
[354737988,1740654649004,-500.0,0.0005589,120]
[354737990,1740654649014,-500.0,0.0005589,120]
[354737992,1740654649024,-6505.37,0.0005589,120]
[354737994,1740654649035,-940.35,0.0005589,120]
[354737997,1740654649045,-500.0,0.0005589,120]
[354737999,1740654649055,-3032.36,0.0005589,120]
[354738000,1740654649065,-500.0,0.0005589,120]
[354738002,1740654649075,-500.0,0.0005589,120]
[354738004,1740654649084,-500.0,0.0005589,120]
[354738006,1740654649094,-757.78,0.0005589,120]
[354738008,1740654649103,-1118.23,0.0005589,120]
[354738010,1740654649114,-3256.8,0.0005589,120]
[354738012,1740654649123,-529.55,0.0005589,120]
[354738015,1740654649133,-500.0,0.0005589,120]
[354738017,1740654649144,-2841.91,0.0005589,120]
[354738019,1740654649156,-153.021552,0.0005589,120]
[354738021,1740654649166,-286.72,0.0005589,120]
[354738023,1740654649175,-275.8124,0.000559,2]
[354738025,1740654649185,-4305.0587,0.000559,2]
[354738027,1740654649194,-169.25098724,0.000559,2]
[354738029,1740654649204,-6202.57251389,0.00055956,15]
[354738031,1740654649214,-439.68,0.00055978,30]
[354738033,1740654649224,-150.0,0.00055978,30]
[354738035,1740654649233,-150.0,0.00055978,30]
[354738037,1740654649242,-237.99,0.00055978,30]
[354738039,1740654649252,-360.7,0.00055978,30]
[354738041,1740654649262,-150.0,0.00055978,30]
[354738043,1740654649271,-350541.18835816,0.00056,120]
[354738052,1740654649356,-436.335,0.00056,120]
[354738054,1740654649368,-34863.29300993,0.00056,120]
[354738057,1740654649379,-11344.26769873,0.00056,120]
[354738070,1740654649491,-500.0,0.00054794,2]
[354738072,1740654649502,-1709.562822,0.00054794,120]
[354738074,1740654649512,-1709.562822,0.00055068,120]
[354738076,1740654649521,-1709.562822,0.00055342,120]
[354738078,1740654649531,-3235.04171182,0.00056,120]
[354738081,1740654649558,-500.0,0.00054999,120]
[354738083,1740654649572,-1709.562822,0.00055616,120]
[354738085,1740654649582,-1381.84162179,0.00056,120]
[354738095,1740654649669,-1004.15885346,0.00047684,10]
[354738097,1740654649679,-500.0,0.00054999,120]
[354738099,1740654649688,-506.11083007,0.00055273,120]
[354738101,1740654649697,-1709.562822,0.0005589,120]
[354738103,1740654649706,-5025.8388253,0.00056,120]
[354738105,1740654649717,-101473.74819295,0.00056,120]
[354738107,1740654649728,-266.064,0.00056,120]
[354738193,1740654650573,-533.4955045,0.00054794,120]
[354738195,1740654650583,-6372.8073329,0.00056,120]
[354738198,1740654650604,-6312.42099229,0.00056,120]
[354738201,1740654650617,-1066.62748,0.00056,120]
[354738203,1740654650628,-3331.01999999,0.00056,120]
[354738205,1740654650640,-10470.0,0.00056,120]
[354738207,1740654650654,-378.68983296,0.00056,120]
[354738215,1740654650712,-5150.3632662,0.00056,120]
[354738415,1740655508380,63487.0,0.00015,2]